[Event "December 5 Early 2023"]
[Site "https://www.chess.com"]
[Date "2023.12.05"]
[Round "7"]
[White "Kaplan, Avi Harrison"]
[Black "Tilahun , Abel Mathewos"]
[Result "1-0"]
[Board "168"]
[TimeControl "180+1"]
[WhiteFideId "30934559"]
[BlackFideId "15702391"]
[WhiteElo "2455"]
[BlackElo "2015"]
[WhiteTeam "USA"]
[BlackTeam "ETH"]
[WhiteClock "0:00:06"]
[BlackClock "0:00:00"]

1. e4 {[%clk 0:03:00]}  e6 {[%clk 0:02:59]} 2. d4 {[%clk 0:02:59]}  d5 {[%clk 0:03:00]} 3. Nd2 {[%clk 0:03:00]}  Nc6 {[%clk 0:02:59]} 4. c3 {[%clk 0:02:56]}  e5 {[%clk 0:02:56]} 5. dxe5 {[%clk 0:02:50]}  dxe4 {[%clk 0:02:50]} 6. Qe2 {[%clk 0:02:47]}  Nxe5 {[%clk 0:02:33]} 7. Nxe4 {[%clk 0:02:41]}  Be7 {[%clk 0:02:15]} 8. g3 {[%clk 0:02:38]}  Nf6 {[%clk 0:01:37]} 9. Bf4 {[%clk 0:02:15]}  Qd5 {[%clk 0:01:17]} 10. Qb5+ {[%clk 0:01:36]}  Qxb5 {[%clk 0:01:07]} 11. Bxb5+ {[%clk 0:01:37]}  Bd7 {[%clk 0:01:00]} 12. Bxd7+ {[%clk 0:01:22]}  Nfxd7 {[%clk 0:00:55]} 13. Ke2 {[%clk 0:01:21]}  O-O {[%clk 0:00:52]} 14. Nf3 {[%clk 0:01:01]}  Nxf3 {[%clk 0:00:35]} 15. Kxf3 {[%clk 0:01:02]}  c6 {[%clk 0:00:30]} 16. Rad1 {[%clk 0:01:00]}  Nc5 {[%clk 0:00:24]} 17. Rhe1 {[%clk 0:00:52]}  Rad8 {[%clk 0:00:20]} 18. b3 {[%clk 0:00:44]}  Nxe4 {[%clk 0:00:18]} 19. Kxe4 {[%clk 0:00:42]}  Bf6 {[%clk 0:00:17]} 20. c4 {[%clk 0:00:18]}  Rfe8+ {[%clk 0:00:17]} 21. Kf3 {[%clk 0:00:17]}  h6 {[%clk 0:00:17]} 22. Bc7 {[%clk 0:00:08]}  Rxe1 {[%clk 0:00:14]} 23. Rxe1 {[%clk 0:00:07]}  Rd7 {[%clk 0:00:14]} 24. Re8+ {[%clk 0:00:06]}  Kh7 {[%clk 0:00:13]} 25. Bb8 {[%clk 0:00:07]}  a6 {[%clk 0:00:13]} 26. Bf4 {[%clk 0:00:07]}  g5 {[%clk 0:00:12]} 27. Be3 {[%clk 0:00:07]}  Kg6 {[%clk 0:00:11]} 28. Ke2 {[%clk 0:00:07]}  h5 {[%clk 0:00:09]} 29. Rg8+ {[%clk 0:00:07]}  Kh7 {[%clk 0:00:06]} 30. Re8 {[%clk 0:00:07]}  g4 {[%clk 0:00:06]} 31. Re4 {[%clk 0:00:06]}  Kg6 {[%clk 0:00:05]} 32. Re8 {[%clk 0:00:06]}  Kh7 {[%clk 0:00:05]} 33. Rb8 {[%clk 0:00:06]}  Kg6 {[%clk 0:00:04]} 34. Kf1 {[%clk 0:00:04]}  Kh7 {[%clk 0:00:04]} 35. Kg2 {[%clk 0:00:05]}  Kg6 {[%clk 0:00:05]} 36. h3 {[%clk 0:00:05]}  gxh3+ {[%clk 0:00:04]} 37. Kxh3 {[%clk 0:00:06]}  h4 {[%clk 0:00:04]} 38. gxh4 {[%clk 0:00:05]}  Kh5 {[%clk 0:00:04]} 39. Re8 {[%clk 0:00:04]}  Bxh4 {[%clk 0:00:03]} 40. Re5+ {[%clk 0:00:04]}  Bg5 {[%clk 0:00:02]} 41. Rxg5+ {[%clk 0:00:04]}  Kh6 {[%clk 0:00:02]} 42. Rd5+ {[%clk 0:00:05]}  Kg6 {[%clk 0:00:00]} 43. Rxd7 {[%clk 0:00:06]} 1-0

[Event "December 5 Early 2023"]
[Site "https://www.chess.com"]
[Date "2023.12.05"]
[Round "7"]
[White "Petrukhina, Olga"]
[Black "Korol, Dimitry"]
[Result "1-0"]
[Board "171"]
[TimeControl "180+1"]
[WhiteFideId "13703935"]
[BlackFideId "14108003"]
[WhiteElo "2210"]
[BlackElo "2303"]
[WhiteTeam "KAZ"]
[BlackTeam "UKR"]
[WhiteClock "0:00:45"]
[BlackClock "0:00:00"]

1. d4 {[%clk 0:03:00]}  Nf6 {[%clk 0:02:59]} 2. c4 {[%clk 0:03:01]}  c5 {[%clk 0:02:59]} 3. d5 {[%clk 0:03:01]}  b5 {[%clk 0:02:59]} 4. cxb5 {[%clk 0:03:02]}  a6 {[%clk 0:03:00]} 5. f3 {[%clk 0:03:02]}  axb5 {[%clk 0:02:59]} 6. e4 {[%clk 0:03:02]}  Qa5+ {[%clk 0:02:59]} 7. b4 {[%clk 0:03:01]}  cxb4 {[%clk 0:02:59]} 8. Nd2 {[%clk 0:02:56]}  e6 {[%clk 0:02:52]} 9. Nb3 {[%clk 0:02:55]}  Qb6 {[%clk 0:02:08]} 10. Ne2 {[%clk 0:02:50]}  e5 {[%clk 0:00:17]} 11. Qd3 {[%clk 0:02:35]}  Be7 {[%clk 0:00:14]} 12. Be3 {[%clk 0:02:35]}  Qa6 {[%clk 0:00:06]} 13. Ng3 {[%clk 0:02:26]}  d6 {[%clk 0:00:05]} 14. Qxb5+ {[%clk 0:02:25]}  Qxb5 {[%clk 0:00:05]} 15. Bxb5+ {[%clk 0:02:26]}  Bd7 {[%clk 0:00:05]} 16. Bxd7+ {[%clk 0:02:21]}  Nbxd7 {[%clk 0:00:06]} 17. Ke2 {[%clk 0:02:13]}  g6 {[%clk 0:00:04]} 18. Rhc1 {[%clk 0:02:05]}  O-O {[%clk 0:00:03]} 19. Rc7 {[%clk 0:01:57]}  Ra4 {[%clk 0:00:03]} 20. Bg5 {[%clk 0:01:36]}  Re8 {[%clk 0:00:03]} 21. Rb7 {[%clk 0:01:22]}  Nf8 {[%clk 0:00:02]} 22. Rxe7 {[%clk 0:01:13]}  Rxe7 {[%clk 0:00:02]} 23. Bxf6 {[%clk 0:01:14]}  Rea7 {[%clk 0:00:03]} 24. Kd3 {[%clk 0:01:03]}  Rxa2 {[%clk 0:00:01]} 25. Rc1 {[%clk 0:00:52]}  R7a3 {[%clk 0:00:01]} 26. Kc4 {[%clk 0:00:47]}  Rxg2 {[%clk 0:00:01]} 27. Kxb4 {[%clk 0:00:46]}  Raa2 {[%clk 0:00:00]} 28. Rc8 {[%clk 0:00:45]} 1-0

[Event "December 5 Early 2023"]
[Site "https://www.chess.com"]
[Date "2023.12.05"]
[Round "7"]
[White "Skiadopoulos, Nikolaos"]
[Black "Colonetti, Fabio"]
[Result "0-1"]
[Board "173"]
[TimeControl "180+1"]
[WhiteFideId "4200772"]
[BlackFideId "897612"]
[WhiteElo "1775"]
[BlackElo "2270"]
[WhiteTeam "GRE"]
[BlackTeam "ITA"]
[WhiteClock "0:00:42"]
[BlackClock "0:01:01"]

1. e4 {[%clk 0:02:45]}  e6 {[%clk 0:02:58]} 2. d4 {[%clk 0:02:44]}  d5 {[%clk 0:02:58]} 3. e5 {[%clk 0:02:44]}  c5 {[%clk 0:02:59]} 4. c3 {[%clk 0:02:44]}  Nc6 {[%clk 0:02:59]} 5. Nf3 {[%clk 0:02:45]}  Qb6 {[%clk 0:02:59]} 6. Bd3 {[%clk 0:02:44]}  Bd7 {[%clk 0:02:51]} 7. O-O {[%clk 0:02:39]}  cxd4 {[%clk 0:02:48]} 8. a3 {[%clk 0:02:39]}  Nge7 {[%clk 0:02:37]} 9. b4 {[%clk 0:02:36]}  Nf5 {[%clk 0:02:37]} 10. c4 {[%clk 0:02:35]}  dxc4 {[%clk 0:02:32]} 11. Bxc4 {[%clk 0:02:32]}  Be7 {[%clk 0:02:28]} 12. Bb2 {[%clk 0:02:31]}  O-O {[%clk 0:02:24]} 13. Nbd2 {[%clk 0:02:30]}  Rac8 {[%clk 0:02:23]} 14. g4 {[%clk 0:02:27]}  Nh4 {[%clk 0:02:22]} 15. Nxh4 {[%clk 0:02:25]}  Bxh4 {[%clk 0:02:22]} 16. g5 {[%clk 0:02:23]}  Nxe5 {[%clk 0:02:13]} 17. Qh5 {[%clk 0:02:16]}  Nxc4 {[%clk 0:02:08]} 18. Nxc4 {[%clk 0:02:15]}  Rxc4 {[%clk 0:02:08]} 19. Qxh4 {[%clk 0:02:15]}  e5 {[%clk 0:01:59]} 20. Rae1 {[%clk 0:02:09]}  Qe6 {[%clk 0:01:28]} 21. f3 {[%clk 0:01:55]}  Bc6 {[%clk 0:01:23]} 22. Rf2 {[%clk 0:01:31]}  Qf5 {[%clk 0:01:12]} 23. Qg3 {[%clk 0:01:28]}  Re8 {[%clk 0:01:09]} 24. Ref1 {[%clk 0:01:24]}  Rc2 {[%clk 0:01:07]} 25. Rxc2 {[%clk 0:01:20]}  Qxc2 {[%clk 0:01:06]} 26. Rf2 {[%clk 0:01:21]}  Qb1+ {[%clk 0:01:06]} 27. Kg2 {[%clk 0:01:21]}  e4 {[%clk 0:01:06]} 28. Bxd4 {[%clk 0:01:05]}  exf3+ {[%clk 0:01:06]} 29. Kh3 {[%clk 0:01:05]}  Bd7+ {[%clk 0:01:05]} 30. Kh4 {[%clk 0:00:42]}  Qe4+ {[%clk 0:01:01]} 0-1

[Event "December 5 Early 2023"]
[Site "https://www.chess.com"]
[Date "2023.12.05"]
[Round "7"]
[White "Minko, Dmitry"]
[Black "NastyaHn"]
[Result "1-0"]
[Board "175"]
[TimeControl "180+1"]
[WhiteFideId "24188468"]
[WhiteElo "2501"]
[BlackElo "2209"]
[WhiteTeam "FID"]
[WhiteClock "0:00:17"]
[BlackClock "0:00:00"]

1. e4 {[%clk 0:03:00]}  e6 {[%clk 0:02:58]} 2. d4 {[%clk 0:03:00]}  d5 {[%clk 0:02:58]} 3. Nc3 {[%clk 0:03:01]}  Bb4 {[%clk 0:02:56]} 4. e5 {[%clk 0:03:02]}  c5 {[%clk 0:02:55]} 5. a3 {[%clk 0:03:02]}  Bxc3+ {[%clk 0:02:53]} 6. bxc3 {[%clk 0:03:03]}  Ne7 {[%clk 0:02:53]} 7. h4 {[%clk 0:03:01]}  Nbc6 {[%clk 0:02:53]} 8. h5 {[%clk 0:03:01]}  h6 {[%clk 0:02:52]} 9. Nf3 {[%clk 0:03:01]}  Qa5 {[%clk 0:02:52]} 10. Bd2 {[%clk 0:03:01]}  Qb6 {[%clk 0:02:50]} 11. a4 {[%clk 0:03:00]}  cxd4 {[%clk 0:02:44]} 12. cxd4 {[%clk 0:03:00]}  Nxd4 {[%clk 0:02:43]} 13. Bd3 {[%clk 0:02:58]}  Nxf3+ {[%clk 0:02:34]} 14. Qxf3 {[%clk 0:02:58]}  Qd4 {[%clk 0:02:33]} 15. O-O {[%clk 0:02:32]}  Qxe5 {[%clk 0:02:25]} 16. Bc3 {[%clk 0:02:13]}  d4 {[%clk 0:02:24]} 17. Rfe1 {[%clk 0:02:12]}  Qd6 {[%clk 0:02:19]} 18. Rad1 {[%clk 0:01:31]}  Bd7 {[%clk 0:01:57]} 19. Bxd4 {[%clk 0:00:56]}  Qxd4 {[%clk 0:01:54]} 20. Bb5 {[%clk 0:00:56]}  Qxd1 {[%clk 0:01:53]} 21. Rxd1 {[%clk 0:00:54]}  Bxb5 {[%clk 0:01:51]} 22. Qxb7 {[%clk 0:00:52]}  Bc6 {[%clk 0:01:42]} 23. Qc7 {[%clk 0:00:52]}  Rc8 {[%clk 0:01:32]} 24. Qd6 {[%clk 0:00:52]}  Nf5 {[%clk 0:01:13]} 25. Qc5 {[%clk 0:00:47]}  Ne7 {[%clk 0:01:00]} 26. Qxa7 {[%clk 0:00:46]}  f6 {[%clk 0:00:51]} 27. Rd6 {[%clk 0:00:34]}  Kf7 {[%clk 0:00:50]} 28. Qe3 {[%clk 0:00:32]}  Bd5 {[%clk 0:00:49]} 29. a5 {[%clk 0:00:28]}  Rxc2 {[%clk 0:00:41]} 30. a6 {[%clk 0:00:27]}  Ra8 {[%clk 0:00:36]} 31. Rd7 {[%clk 0:00:20]}  Rxa6 {[%clk 0:00:31]} 32. Qd3 {[%clk 0:00:20]}  Rc1+ {[%clk 0:00:09]} 33. Kh2 {[%clk 0:00:21]}  Ra8 {[%clk 0:00:09]} 34. Qg6+ {[%clk 0:00:19]}  Kf8 {[%clk 0:00:10]} 35. Qh7 {[%clk 0:00:19]}  Rcc8 {[%clk 0:00:04]} 36. Qh8+ {[%clk 0:00:16]}  Kf7 {[%clk 0:00:04]} 37. Qh7 {[%clk 0:00:17]}  Rg8 {[%clk 0:00:01]} 38. Qg6+ {[%clk 0:00:16]}  Kf8 {[%clk 0:00:02]} 39. Qc2 {[%clk 0:00:16]}  Bc6 {[%clk 0:00:02]} 40. Rxe7 {[%clk 0:00:15]}  Kxe7 {[%clk 0:00:03]} 41. Qxc6 {[%clk 0:00:16]}  Rgc8 {[%clk 0:00:03]} 42. Qb7+ {[%clk 0:00:17]}  Kf8 {[%clk 0:00:04]} 43. Qd7 {[%clk 0:00:16]}  Re8 {[%clk 0:00:04]} 44. f3 {[%clk 0:00:16]}  e5 {[%clk 0:00:05]} 45. Kh3 {[%clk 0:00:16]}  Kg8 {[%clk 0:00:05]} 46. Kg4 {[%clk 0:00:17]}  Rad8 {[%clk 0:00:05]} 47. Qc7 {[%clk 0:00:17]}  Rd4+ {[%clk 0:00:05]} 48. Kf5 {[%clk 0:00:17]}  Rh4 {[%clk 0:00:00]} 49. Kg6 {[%clk 0:00:17]} 1-0

[Event "December 5 Early 2023"]
[Site "https://www.chess.com"]
[Date "2023.12.05"]
[Round "7"]
[White "Florianovitz, Derlei Alex"]
[Black "Omariev, Maksim"]
[Result "0-1"]
[Board "176"]
[TimeControl "180+1"]
[WhiteFideId "2114178"]
[BlackFideId "4193423"]
[WhiteElo "2201"]
[BlackElo "2462"]
[WhiteTeam "BRA"]
[BlackTeam "RUS"]
[WhiteClock "0:00:06"]
[BlackClock "0:00:45"]

1. e4 {[%clk 0:03:00]}  c5 {[%clk 0:03:00]} 2. Nf3 {[%clk 0:02:56]}  d6 {[%clk 0:03:00]} 3. d4 {[%clk 0:02:55]}  cxd4 {[%clk 0:03:01]} 4. Nxd4 {[%clk 0:02:55]}  Nf6 {[%clk 0:02:45]} 5. Nc3 {[%clk 0:02:55]}  a6 {[%clk 0:02:45]} 6. h3 {[%clk 0:02:55]}  e6 {[%clk 0:02:42]} 7. g4 {[%clk 0:02:53]}  Nfd7 {[%clk 0:02:40]} 8. Bg2 {[%clk 0:02:53]}  Qc7 {[%clk 0:02:40]} 9. O-O {[%clk 0:02:52]}  b5 {[%clk 0:02:41]} 10. a4 {[%clk 0:02:45]}  b4 {[%clk 0:02:41]} 11. Nce2 {[%clk 0:02:45]}  Bb7 {[%clk 0:02:41]} 12. Ng3 {[%clk 0:02:40]}  Be7 {[%clk 0:02:39]} 13. Be3 {[%clk 0:02:39]}  Ne5 {[%clk 0:02:29]} 14. b3 {[%clk 0:02:35]}  O-O {[%clk 0:02:26]} 15. f4 {[%clk 0:02:34]}  Nec6 {[%clk 0:02:26]} 16. Nxc6 {[%clk 0:02:28]}  Nxc6 {[%clk 0:02:27]} 17. Qd2 {[%clk 0:02:27]}  Bf6 {[%clk 0:02:24]} 18. Rad1 {[%clk 0:02:24]}  Rfd8 {[%clk 0:02:22]} 19. Qf2 {[%clk 0:02:23]}  Rd7 {[%clk 0:02:19]} 20. g5 {[%clk 0:02:11]}  Bb2 {[%clk 0:02:13]} 21. f5 {[%clk 0:02:09]}  Ne5 {[%clk 0:02:07]} 22. Nh5 {[%clk 0:02:00]}  Rc8 {[%clk 0:02:00]} 23. Rd2 {[%clk 0:01:57]}  d5 {[%clk 0:01:38]} 24. Qh4 {[%clk 0:01:30]}  dxe4 {[%clk 0:01:23]} 25. Rxd7 {[%clk 0:00:47]}  Qxd7 {[%clk 0:01:24]} 26. Qg3 {[%clk 0:00:25]}  exf5 {[%clk 0:00:57]} 27. Nf6+ {[%clk 0:00:25]}  gxf6 {[%clk 0:00:57]} 28. gxf6+ {[%clk 0:00:26]}  Ng6 {[%clk 0:00:58]} 29. Bg5 {[%clk 0:00:21]}  Rxc2 {[%clk 0:00:53]} 30. h4 {[%clk 0:00:20]}  h5 {[%clk 0:00:52]} 31. Bh3 {[%clk 0:00:12]}  Be5 {[%clk 0:00:51]} 32. Qe3 {[%clk 0:00:09]}  Bd4 {[%clk 0:00:50]} 33. Bxf5 {[%clk 0:00:06]}  Bxe3+ {[%clk 0:00:50]} 34. Bxe3 {[%clk 0:00:06]}  Qd6 {[%clk 0:00:49]} 35. Bxg6 {[%clk 0:00:06]}  Qh2# {[%clk 0:00:45]} 0-1

[Event "December 5 Early 2023"]
[Site "https://www.chess.com"]
[Date "2023.12.05"]
[Round "7"]
[White "Lopez Del Alamo, Antonio"]
[Black "Biriukov, Ilja"]
[Result "1-0"]
[Board "180"]
[TimeControl "180+1"]
[WhiteFideId "2227339"]
[BlackFideId "4113373"]
[WhiteElo "2295"]
[BlackElo "2130"]
[WhiteTeam "ESP"]
[BlackTeam "RUS"]
[WhiteClock "0:00:54"]
[BlackClock "0:00:15"]

1. e4 {[%clk 0:03:00]}  e6 {[%clk 0:02:55]} 2. d3 {[%clk 0:02:56]}  d5 {[%clk 0:02:56]} 3. Nd2 {[%clk 0:02:55]}  Nf6 {[%clk 0:02:55]} 4. Ngf3 {[%clk 0:02:55]}  b6 {[%clk 0:02:51]} 5. c3 {[%clk 0:02:55]}  Bb7 {[%clk 0:02:50]} 6. Qa4+ {[%clk 0:02:54]}  Qd7 {[%clk 0:02:46]} 7. Qc2 {[%clk 0:02:51]}  Be7 {[%clk 0:02:41]} 8. e5 {[%clk 0:02:47]}  Ng8 {[%clk 0:02:37]} 9. d4 {[%clk 0:02:42]}  c5 {[%clk 0:02:36]} 10. Bd3 {[%clk 0:02:40]}  Ba6 {[%clk 0:02:28]} 11. O-O {[%clk 0:02:38]}  Bxd3 {[%clk 0:02:26]} 12. Qxd3 {[%clk 0:02:39]}  Nh6 {[%clk 0:02:20]} 13. dxc5 {[%clk 0:02:29]}  bxc5 {[%clk 0:02:17]} 14. c4 {[%clk 0:02:29]}  Nc6 {[%clk 0:02:08]} 15. b3 {[%clk 0:02:28]}  Nb4 {[%clk 0:02:07]} 16. Qe2 {[%clk 0:02:23]}  Nf5 {[%clk 0:02:01]} 17. Bb2 {[%clk 0:02:21]}  d4 {[%clk 0:01:53]} 18. Ne4 {[%clk 0:02:15]}  Qc6 {[%clk 0:01:39]} 19. Rfe1 {[%clk 0:02:10]}  d3 {[%clk 0:01:38]} 20. Qd2 {[%clk 0:02:07]}  Nc2 {[%clk 0:01:37]} 21. Qxd3 {[%clk 0:02:06]}  Nxa1 {[%clk 0:01:34]} 22. Bxa1 {[%clk 0:02:03]}  Rd8 {[%clk 0:01:33]} 23. Qe2 {[%clk 0:02:01]}  Nd4 {[%clk 0:01:26]} 24. Nxd4 {[%clk 0:01:53]}  cxd4 {[%clk 0:01:27]} 25. Qd3 {[%clk 0:01:53]}  O-O {[%clk 0:01:18]} 26. f4 {[%clk 0:01:44]}  Bb4 {[%clk 0:01:13]} 27. Rf1 {[%clk 0:01:39]}  Bc3 {[%clk 0:01:00]} 28. Bxc3 {[%clk 0:01:14]}  dxc3 {[%clk 0:01:01]} 29. Nd6 {[%clk 0:01:15]}  Qc5+ {[%clk 0:00:57]} 30. Kh1 {[%clk 0:01:13]}  f6 {[%clk 0:00:52]} 31. Qh3 {[%clk 0:01:03]}  f5 {[%clk 0:00:37]} 32. Qxc3 {[%clk 0:01:02]}  Rxd6 {[%clk 0:00:32]} 33. exd6 {[%clk 0:01:01]}  Qxd6 {[%clk 0:00:33]} 34. Qe5 {[%clk 0:00:54]}  Qxe5 {[%clk 0:00:31]} 35. fxe5 {[%clk 0:00:55]}  Rd8 {[%clk 0:00:31]} 36. Rc1 {[%clk 0:00:54]}  Rd2 {[%clk 0:00:28]} 37. c5 {[%clk 0:00:53]}  Rd7 {[%clk 0:00:20]} 38. c6 {[%clk 0:00:52]}  Rc7 {[%clk 0:00:20]} 39. b4 {[%clk 0:00:53]}  a6 {[%clk 0:00:18]} 40. a4 {[%clk 0:00:53]}  Kf8 {[%clk 0:00:19]} 41. b5 {[%clk 0:00:53]}  axb5 {[%clk 0:00:15]} 42. axb5 {[%clk 0:00:54]} 1-0

[Event "December 5 Early 2023"]
[Site "https://www.chess.com"]
[Date "2023.12.05"]
[Round "7"]
[White "pauliukevicius"]
[Black "Mejia, Cherry Ann"]
[Result "1-0"]
[Board "181"]
[TimeControl "180+1"]
[BlackFideId "5206880"]
[WhiteElo "2117"]
[BlackElo "2293"]
[BlackTeam "PHI"]
[WhiteClock "0:00:06"]
[BlackClock "0:00:05"]

1. d4 {[%clk 0:03:00]}  d5 {[%clk 0:02:55]} 2. c4 {[%clk 0:03:00]}  dxc4 {[%clk 0:02:55]} 3. e4 {[%clk 0:02:59]}  e5 {[%clk 0:02:55]} 4. Nf3 {[%clk 0:02:56]}  exd4 {[%clk 0:02:55]} 5. Bxc4 {[%clk 0:02:56]}  Bb4+ {[%clk 0:02:50]} 6. Nbd2 {[%clk 0:02:33]}  Qf6 {[%clk 0:02:47]} 7. O-O {[%clk 0:02:26]}  Nc6 {[%clk 0:02:43]} 8. e5 {[%clk 0:02:10]}  Qg6 {[%clk 0:02:43]} 9. Nb3 {[%clk 0:01:53]}  Bg4 {[%clk 0:02:28]} 10. h3 {[%clk 0:00:20]}  Bxh3 {[%clk 0:02:15]} 11. Ng5 {[%clk 0:00:21]}  Be6 {[%clk 0:02:12]} 12. Nxe6 {[%clk 0:00:13]}  fxe6 {[%clk 0:02:13]} 13. Nxd4 {[%clk 0:00:12]}  Nxd4 {[%clk 0:02:10]} 14. Qxd4 {[%clk 0:00:13]}  Be7 {[%clk 0:01:39]} 15. Be3 {[%clk 0:00:07]}  Nh6 {[%clk 0:01:34]} 16. Rad1 {[%clk 0:00:06]}  O-O {[%clk 0:01:30]} 17. Qd7 {[%clk 0:00:06]}  Bg5 {[%clk 0:01:17]} 18. Qxe6+ {[%clk 0:00:04]}  Qxe6 {[%clk 0:00:35]} 19. Bxe6+ {[%clk 0:00:04]}  Kh8 {[%clk 0:00:36]} 20. Bxg5 {[%clk 0:00:04]}  Rae8 {[%clk 0:00:36]} 21. Bxh6 {[%clk 0:00:04]}  gxh6 {[%clk 0:00:37]} 22. Bg4 {[%clk 0:00:04]}  Rxe5 {[%clk 0:00:37]} 23. Rd7 {[%clk 0:00:04]}  Rc5 {[%clk 0:00:35]} 24. Re1 {[%clk 0:00:05]}  h5 {[%clk 0:00:12]} 25. Ree7 {[%clk 0:00:04]}  Rc1+ {[%clk 0:00:12]} 26. Kh2 {[%clk 0:00:04]}  Rb8 {[%clk 0:00:05]} 27. Rxh7+ {[%clk 0:00:04]}  Kg8 {[%clk 0:00:05]} 28. Be6+ {[%clk 0:00:05]}  Kf8 {[%clk 0:00:05]} 29. Rh8# {[%clk 0:00:06]} 1-0

[Event "December 5 Early 2023"]
[Site "https://www.chess.com"]
[Date "2023.12.05"]
[Round "7"]
[White "Franchini, Gabriele"]
[Black "Mende, Andreas"]
[Result "1-0"]
[Board "182"]
[TimeControl "180+1"]
[WhiteFideId "806790"]
[BlackFideId "4631102"]
[WhiteElo "2279"]
[BlackElo "2096"]
[WhiteTeam "ITA"]
[BlackTeam "GER"]
[WhiteClock "0:00:43"]
[BlackClock "0:00:00"]

1. e4 {[%clk 0:03:00]}  c5 {[%clk 0:02:59]} 2. Nf3 {[%clk 0:03:00]}  Nc6 {[%clk 0:02:59]} 3. Bb5 {[%clk 0:03:01]}  g6 {[%clk 0:02:58]} 4. Bxc6 {[%clk 0:03:01]}  dxc6 {[%clk 0:02:58]} 5. d3 {[%clk 0:03:01]}  Bg7 {[%clk 0:02:57]} 6. h3 {[%clk 0:03:02]}  Nf6 {[%clk 0:02:57]} 7. Nc3 {[%clk 0:03:03]}  Nd7 {[%clk 0:02:57]} 8. Be3 {[%clk 0:03:03]}  b6 {[%clk 0:02:56]} 9. a4 {[%clk 0:03:03]}  a5 {[%clk 0:02:54]} 10. Qd2 {[%clk 0:03:04]}  Nf8 {[%clk 0:02:54]} 11. Bh6 {[%clk 0:03:01]}  Bxh6 {[%clk 0:02:41]} 12. Qxh6 {[%clk 0:03:02]}  Ne6 {[%clk 0:02:41]} 13. Ne5 {[%clk 0:02:45]}  Qc7 {[%clk 0:02:38]} 14. f4 {[%clk 0:02:32]}  Nxf4 {[%clk 0:01:43]} 15. Qxf4 {[%clk 0:02:10]}  f6 {[%clk 0:01:42]} 16. Nxg6 {[%clk 0:02:10]}  Qxf4 {[%clk 0:01:41]} 17. Nxf4 {[%clk 0:02:11]}  Bd7 {[%clk 0:01:29]} 18. O-O {[%clk 0:02:10]}  Rg8 {[%clk 0:01:27]} 19. Kh2 {[%clk 0:02:04]}  O-O-O {[%clk 0:01:27]} 20. Rae1 {[%clk 0:02:03]}  Rg5 {[%clk 0:01:23]} 21. Re2 {[%clk 0:01:53]}  h5 {[%clk 0:01:19]} 22. Ref2 {[%clk 0:01:42]}  Rdg8 {[%clk 0:01:17]} 23. Re1 {[%clk 0:01:34]}  h4 {[%clk 0:01:09]} 24. Nd1 {[%clk 0:01:33]}  b5 {[%clk 0:00:56]} 25. Ne3 {[%clk 0:01:31]}  e6 {[%clk 0:00:45]} 26. Ra1 {[%clk 0:01:28]}  e5 {[%clk 0:00:26]} 27. Ne2 {[%clk 0:01:23]}  Rg3 {[%clk 0:00:20]} 28. Nf5 {[%clk 0:01:18]}  Bxf5 {[%clk 0:00:19]} 29. exf5 {[%clk 0:01:18]}  Re3 {[%clk 0:00:16]} 30. axb5 {[%clk 0:01:16]}  cxb5 {[%clk 0:00:12]} 31. Rxa5 {[%clk 0:01:16]}  c4 {[%clk 0:00:07]} 32. dxc4 {[%clk 0:01:14]}  bxc4 {[%clk 0:00:05]} 33. Rc5+ {[%clk 0:01:15]}  Kd7 {[%clk 0:00:05]} 34. Rxc4 {[%clk 0:01:15]}  Rb8 {[%clk 0:00:04]} 35. b3 {[%clk 0:01:14]}  Kd6 {[%clk 0:00:04]} 36. Rxh4 {[%clk 0:01:05]}  Kd5 {[%clk 0:00:03]} 37. Rh7 {[%clk 0:00:52]}  Rc8 {[%clk 0:00:02]} 38. Rd7+ {[%clk 0:00:46]}  Ke4 {[%clk 0:00:00]} 39. Ng3+ {[%clk 0:00:43]} 1-0

[Event "December 5 Early 2023"]
[Site "https://www.chess.com"]
[Date "2023.12.05"]
[Round "7"]
[White "Nikulina, Alena"]
[Black "Mickiewicz, Piotr"]
[Result "0-1"]
[Board "187"]
[TimeControl "180+1"]
[WhiteFideId "4172051"]
[BlackFideId "1114891"]
[WhiteElo "2018"]
[BlackElo "2369"]
[WhiteTeam "RUS"]
[BlackTeam "POL"]
[WhiteClock "0:02:03"]
[BlackClock "0:01:43"]

1. e4 {[%clk 0:02:59]}  e5 {[%clk 0:02:58]} 2. Nf3 {[%clk 0:02:57]}  Nc6 {[%clk 0:02:58]} 3. Bb5 {[%clk 0:02:57]}  Nf6 {[%clk 0:02:55]} 4. O-O {[%clk 0:02:55]}  d6 {[%clk 0:02:47]} 5. d4 {[%clk 0:02:54]}  exd4 {[%clk 0:02:44]} 6. Nxd4 {[%clk 0:02:53]}  Bd7 {[%clk 0:02:43]} 7. Bxc6 {[%clk 0:02:53]}  bxc6 {[%clk 0:02:42]} 8. Qf3 {[%clk 0:02:53]}  c5 {[%clk 0:02:39]} 9. Nf5 {[%clk 0:02:48]}  Bxf5 {[%clk 0:02:08]} 10. exf5 {[%clk 0:02:47]}  Be7 {[%clk 0:02:07]} 11. Nc3 {[%clk 0:02:45]}  O-O {[%clk 0:02:06]} 12. Bg5 {[%clk 0:02:41]}  Qd7 {[%clk 0:02:05]} 13. Rfe1 {[%clk 0:02:40]}  Rfe8 {[%clk 0:01:51]} 14. Rxe7 {[%clk 0:02:16]}  Qxe7 {[%clk 0:01:47]} 15. Nd5 {[%clk 0:02:15]}  Qe1+ {[%clk 0:01:42]} 16. Rxe1 {[%clk 0:02:03]}  Rxe1# {[%clk 0:01:43]} 0-1

[Event "December 5 Early 2023"]
[Site "https://www.chess.com"]
[Date "2023.12.05"]
[Round "7"]
[White "Mirzoev, Azer"]
[Black "Jesusesmifuerza"]
[Result "1-0"]
[Board "188"]
[TimeControl "180+1"]
[WhiteFideId "13400304"]
[WhiteElo "2597"]
[BlackElo "2106"]
[WhiteTeam "AZE"]
[WhiteClock "0:02:03"]
[BlackClock "0:01:49"]

1. c4 {[%clk 0:03:00]}  e5 {[%clk 0:03:00]} 2. Nc3 {[%clk 0:02:58]}  Nf6 {[%clk 0:03:00]} 3. Nf3 {[%clk 0:02:58]}  Nc6 {[%clk 0:03:00]} 4. d3 {[%clk 0:02:58]}  h6 {[%clk 0:03:00]} 5. e3 {[%clk 0:02:57]}  Bc5 {[%clk 0:03:00]} 6. a3 {[%clk 0:02:57]}  a6 {[%clk 0:03:00]} 7. b4 {[%clk 0:02:57]}  Ba7 {[%clk 0:03:00]} 8. Be2 {[%clk 0:02:57]}  d6 {[%clk 0:03:00]} 9. O-O {[%clk 0:02:57]}  O-O {[%clk 0:03:00]} 10. Bb2 {[%clk 0:02:54]}  Bf5 {[%clk 0:02:59]} 11. Nd5 {[%clk 0:02:51]}  Re8 {[%clk 0:02:54]} 12. Rc1 {[%clk 0:02:50]}  e4 {[%clk 0:02:53]} 13. Nxf6+ {[%clk 0:02:49]}  gxf6 {[%clk 0:02:53]} 14. dxe4 {[%clk 0:02:50]}  Bxe4 {[%clk 0:02:52]} 15. Bd3 {[%clk 0:02:47]}  Kh7 {[%clk 0:02:50]} 16. Bxe4+ {[%clk 0:02:45]}  Rxe4 {[%clk 0:02:51]} 17. Qd5 {[%clk 0:02:45]}  Re6 {[%clk 0:02:41]} 18. Qf5+ {[%clk 0:02:44]}  Kg7 {[%clk 0:02:36]} 19. Qg4+ {[%clk 0:02:44]}  Kh7 {[%clk 0:02:35]} 20. Qf5+ {[%clk 0:02:34]}  Kg7 {[%clk 0:02:35]} 21. Rfd1 {[%clk 0:02:34]}  Qg8 {[%clk 0:02:26]} 22. c5 {[%clk 0:02:32]}  dxc5 {[%clk 0:02:22]} 23. bxc5 {[%clk 0:02:33]}  Qh7 {[%clk 0:02:18]} 24. Qh3 {[%clk 0:02:06]}  Rg8 {[%clk 0:02:11]} 25. Rd7 {[%clk 0:02:05]}  Bb8 {[%clk 0:01:49]} 26. Qxe6 {[%clk 0:02:03]} 1-0